fUSD/lending_fUSD_20240123
["ID","MTS","AMOUNT","RATE_DAILY","PERIOD"]
[312566323,1706005845829,-8388.0,0.000236,2]
[312566324,1706005845839,-200.33,0.000237,2]
[312566325,1706005845849,-155.50340642,0.00024,2]
[312566326,1706005845858,-757.07,0.00024046,2]
[312566327,1706005845867,-407.23969374,0.000241,2]
[312566328,1706005845877,-452.6,0.00024245,2]
[312566329,1706005845886,-640.0,0.00024273,2]
[312566330,1706005845895,-167.0,0.00024297,2]
[312566331,1706005845905,-325.29759389,0.0002442,2]
[312566332,1706005845914,-360.0,0.00024439,2]
[312566333,1706005845923,-200.33,0.00024538,2]
[312566334,1706005845932,-376.0219183,0.00024658,2]
[312566335,1706005845941,-250.0,0.00024658,2]
[312566336,1706005845950,-528.39710743,0.00024763,2]
[312566337,1706005845960,-757.07,0.00024847,2]
[312566338,1706005845970,-1295.64,0.00024899,2]
[312566339,1706005845979,-210.0,0.0002493,2]
[312566340,1706005845988,-2814.48967076,0.00025,2]
[312566341,1706005845997,-2808.9871165,0.00025,2]
[312566342,1706005846007,-350.0,0.00025,3]
[312566343,1706005846017,-200.16928881,0.00025,2]
[312566344,1706005846026,-158.83060076,0.00025,2]
[312566345,1706005846035,-1800.69487575,0.000251,2]
[312566346,1706005846044,-200.33,0.00025376,2]
[312566347,1706005846053,-274.32520966,0.0002549,2]
[312566348,1706005846063,-155.86474201,0.00025795,2]
[312566349,1706005846075,-167.32,0.00025995,2]
[312566350,1706005846085,-4176.95432197,0.00026,2]
[312566351,1706005846094,-201.28334269,0.00026,2]
[312566352,1706005846103,-200.33,0.00026214,2]
[312566353,1706005846113,-16734.55934511,0.000264,2]
[312566354,1706005846123,-452.6,0.00026509,2]
[312566355,1706005846132,-1295.64,0.00026543,2]
[312566356,1706005846142,-1444.89,0.00026575,2]
[312566357,1706005846152,-528.39710743,0.00026625,2]
[312566358,1706005846162,-640.0,0.0002697,2]
[312566359,1706005846171,-400.0,0.00027,3]
[312566360,1706005846181,-412.83307736,0.00027,2]
[312566361,1706005846191,-200.33,0.00027052,2]
[312566364,1706005846201,-167.32,0.00027068,2]
[312566367,1706005846211,-360.0,0.00027154,2]
[312566370,1706005846223,-151.41324109,0.00027397,2]
[312566372,1706005846232,-3000.0,0.00027397,2]
[312566374,1706005846242,-3000.0,0.00027397,2]
[312566376,1706005846251,-4878.6747,0.00027397,2]
[312566378,1706005846260,-155.0,0.00027397,2]
[312566380,1706005846270,-152.48,0.00027397,2]
[312566382,1706005846279,-150.32,0.00027397,2]
[312566384,1706005846288,-230.83,0.00027397,2]
[312566386,1706005846299,-5329.48,0.00027397,2]
[312566388,1706005846308,-195.97,0.00027397,2]
[312566390,1706005846317,-252.52,0.000274,2]
[312566392,1706005846329,-252.52,0.000274,2]
[312566394,1706005846339,-252.52,0.000274,2]
[312566396,1706005846348,-252.52,0.000274,2]
[312566398,1706005846356,-252.52,0.000274,2]
[312566400,1706005846365,-252.52,0.000274,2]
[312566402,1706005846374,-252.52,0.000274,2]
[312566404,1706005846384,-192.0,0.00027423,2]
[312566406,1706005846393,-12920.07610866,0.000275,2]
[312566408,1706005846403,-152.48,0.00027702,2]
[312566410,1706005846413,-200.33,0.00027891,2]
[312566412,1706005846422,-557.03638317,0.00028,2]
[312566415,1706005846431,-152.48,0.00028006,2]
[312566416,1706005846440,-167.32,0.00028141,2]
[312566418,1706005846450,-1295.64,0.00028186,2]
[312566420,1706005846460,-167.0,0.00028307,2]
[312566423,1706005846470,-152.48,0.0002831,2]
[312566425,1706005846479,-150.32,0.0002831,2]
[312566426,1706005846488,-528.39710743,0.00028488,2]
[312566429,1706005846498,-323.14224298,0.000285,2]
[312566431,1706005846507,-152.48,0.00028615,2]
[312566433,1706005846516,-200.33,0.00028729,2]
[312566434,1706005846525,-155.0,0.00028767,2]
[312566436,1706005846534,-319.0,0.00028772,2]
[312566438,1706005846543,-866.0,0.00028772,2]
[312566441,1706005846553,-252.942,0.00028772,2]
[312566443,1706005846562,-549.883,0.00028772,2]
[312566445,1706005846573,-947.0,0.00028772,2]
[312566446,1706005846582,-837.0,0.00028772,2]
[312566448,1706005846591,-1031.0,0.00028772,2]
[312566450,1706005846601,-215.0,0.00028772,2]
[312566452,1706005846610,-1114.538,0.00028772,2]
[312566455,1706005846619,-171.727,0.00028772,2]
[312566457,1706005846629,-1022.091,0.00028772,2]
[312566459,1706005846639,-703.0,0.00028772,2]
[312566461,1706005846648,-253.668,0.00028772,2]
[312566463,1706005846657,-452.6,0.00028773,2]
[312566464,1706005846667,-152.48,0.00028919,2]
[312566466,1706005846676,-326.64714414,0.00029,2]
[312566467,1706005846686,-8675.25219953,0.00029,2]
[312566468,1706005846696,-450.0,0.00029,3]
[312566469,1706005846706,-150.0,0.00029,2]
[312566470,1706005846716,-295.38353591,0.00029,2]
[312566471,1706005846727,-1852.51377187,0.00029135,28]
[312566472,1706005846736,-167.32,0.00029213,2]
[312566473,1706005846746,-152.48,0.00029224,2]
[312566474,1706005846757,-150.32,0.00029224,2]
[312566475,1706005846767,-252.52,0.0002939,2]
[312566476,1706005846776,-3484.89647953,0.000294,2]
[312566477,1706005846787,-3484.89647951,0.000294,2]
[312566478,1706005846797,-3484.89647951,0.000294,2]
[312566479,1706005846806,-3484.89647951,0.000294,2]
[312566480,1706005846816,-3484.89647951,0.000294,2]
[312566481,1706005846827,-3484.89647951,0.000294,2]
[312566482,1706005846836,-3484.89647951,0.000294,2]
[312566483,1706005846845,-3484.89647951,0.000294,2]
[312566484,1706005846853,-3484.89647951,0.000294,2]
[312566485,1706005846863,-3484.89647951,0.000294,2]
[312566486,1706005846872,-155.65633722,0.000295,3]
[312566487,1706005846882,-152.48,0.00029528,2]
[312566488,1706005846893,-3484.89647951,0.00029647,2]
[312566489,1706005846902,-640.0,0.00029667,2]
[312566490,1706005846911,-175.58250697,0.000298,2]
[312566491,1706005846921,-731.25712485,0.000298,2]
[312566492,1706005846930,-1295.64,0.0002983,2]
[312566493,1706005846939,-152.48,0.00029833,2]
[312566494,1706005846948,-360.0,0.0002987,2]
[312566495,1706005846958,-71192.77855637,0.000299,2]
[312566496,1706005846967,-11989.8148,0.000299,2]
[312566497,1706005846976,-9517.288264,0.000299,2]
[312566498,1706005846985,-155.86474201,0.000299,2]
[312566499,1706005846994,-4651.52509205,0.0002996,2]
[312566500,1706005847003,-59301.95,0.0002999,5]
[312566501,1706005847012,-252.52,0.0002999,2]
[312566502,1706005847021,-252.52,0.0002999,2]
[312566503,1706005847031,-1590.92770336,0.00029998,2]
[312566504,1706005847039,-409.03291433,0.00029999,2]
[312566505,1706005847049,-201.77403608,0.00029999,2]
[312566506,1706005847058,-294106.3295142,0.0003,7]
[312566507,1706005847066,-40678.2052449,0.0003,4]
[312566508,1706005847076,-357.81564083,0.0003,2]
[312566509,1706005847085,-5623.87809387,0.0003,2]
[312566510,1706005847094,-155.0,0.0003,2]
[312566511,1706005847102,-218781.90515529,0.0003,2]
[312566512,1706005847315,-500.46779106,0.0003,2]
[312566513,1706005847328,-2287.038209,0.0003,2]
[312566514,1706005847339,-729.0490375,0.0003,2]
[312566515,1706005847365,-425.400001,0.0003,2]
[312566516,1706005847376,-1082.87489823,0.0003,2]
[312566517,1706005847398,-1637.4717205,0.0003,2]
[312566518,1706005847409,-611.705515,0.0003,2]
[312566519,1706005847421,-7378.38208233,0.0003,2]
[312566520,1706005847439,-18334.75249306,0.0003,2]
[312566521,1706005847450,-7290.04429392,0.0003,2]
[312566522,1706005847461,-8163.35029545,0.0003,2]
[312566523,1706005847472,-301.36826649,0.0003,2]
[312566524,1706005847484,-483.35778768,0.0003,2]
[312566525,1706005847496,-546.006,0.0003,2]
[312566526,1706005847508,-602.2036766,0.0003,2]
[312566569,1706006137679,240.66,0.0003,60]
[312566572,1706006330066,432.0,0.0003,120]
[312566578,1706006658193,10000.0,0.00033,30]
[312566579,1706006674006,5783.78,0.00033,30]
[312566641,1706007031946,-155.0,0.00022738,2]
[312566643,1706007031956,-150.0,0.0002274,2]
[312566645,1706007031966,-1846.99796482,0.00022764,2]
[312566647,1706007031975,-738.45,0.00022765,2]
[312566649,1706007031985,-728.41,0.00022765,2]
[312566651,1706007031995,-714.69,0.00022765,2]
[312566653,1706007032005,-728.66,0.00022765,2]
[312566654,1706007032014,-712.9,0.00022765,2]
[312566656,1706007032024,-720.94,0.00022765,2]
[312566657,1706007032034,-735.12,0.00022765,2]
[312566658,1706007032044,-3947.32717882,0.00022765,2]
[312566659,1706007032053,-837.19098398,0.00022765,2]
[312566660,1706007032063,-350.0,0.00025,3]
[312566661,1706007032073,-356.07,0.00026264,2]
[312566662,1706007032082,-400.0,0.00027,3]
[312566663,1706007032091,-775.0,0.00027,2]
[312566664,1706007032101,-174.55,0.00027397,2]
[312566665,1706007032110,-315.93,0.00028115,2]
[312566666,1706007032120,-160.0,0.00028293,2]
[312566667,1706007032129,-153.6,0.00028303,2]
[312566668,1706007032139,-250.0,0.00028331,2]
[312566669,1706007032148,-356.07,0.00028528,2]
[312566670,1706007032158,-166.31,0.00028539,2]
[312566671,1706007032167,-872.0,0.00028691,2]
[312566672,1706007032177,-388.33178,0.00028771,2]
[312566673,1706007032186,-1272.13763878,0.00028775,2]
[312566674,1706007032196,-450.0,0.00029,3]
[312566675,1706007032206,-155.0,0.00029,2]
[312566676,1706007032216,-1565.70067045,0.0002911,28]
[312566677,1706007032226,-1272.13763878,0.00029191,2]
[312566678,1706007032236,-206.0,0.00029256,2]
[312566679,1706007032246,-21087.0,0.00029403,2]
[312566680,1706007032255,-167.53,0.00029434,2]
[312566681,1706007032265,-623.469,0.00029472,2]
[312566682,1706007032274,-835.0,0.00029472,2]
[312566683,1706007032283,-703.0,0.00029472,2]
[312566684,1706007032293,-215.0,0.00029472,2]
[312566685,1706007032302,-499.673,0.00029472,2]
[312566686,1706007032312,-426.0,0.00029472,2]
[312566687,1706007032322,-998.0,0.00029472,2]
[312566688,1706007032331,-236.0,0.00029472,2]
[312566689,1706007032340,-150.0,0.00029472,2]
[312566690,1706007032350,-866.0,0.00029472,2]
[312566691,1706007032359,-315.864,0.00029472,2]
[312566692,1706007032369,-250.0,0.00029472,2]
[312566693,1706007032378,-197.0,0.00029472,2]
[312566694,1706007032388,-157.528,0.00029472,2]
[312566695,1706007032397,-209.925,0.00029472,2]
[312566696,1706007032407,-1031.0,0.00029472,2]
[312566697,1706007032416,-176.0,0.00029472,2]
[312566698,1706007032425,-237.289,0.00029472,2]
[312566699,1706007032436,-218.835,0.00029472,2]
[312566700,1706007032447,-150.185,0.00029472,2]
[312566701,1706007032457,-151.015,0.00029472,2]
[312566702,1706007032466,-1272.13763878,0.00029518,2]
[312566703,1706007032476,-184.64955679,0.00029613,6]
[312566704,1706007032486,-1272.13763878,0.00029613,2]
[312566705,1706007032495,-2500.0,0.000298,2]
[312566706,1706007032504,-1568.20341596,0.000298,2]
[312566707,1706007032514,-1000.0,0.000299,2]
[312566708,1706007032523,-636.10474401,0.000299,2]
[312566709,1706007032536,-237.78265599,0.000299,2]
[312566710,1706007032546,-260.95270398,0.000299,2]
[312566711,1706007032587,-859.35289602,0.000299,2]
[312566712,1706007032597,-155793.283104,0.000299,2]
[312566713,1706007032608,-383.019,0.000299,2]
[312566714,1706007032623,-393.05108638,0.000299,2]
[312566725,1706007037865,-384.62388256,0.00022737,2]
[312566726,1706007037875,-210.568,0.00029472,2]
[312566727,1706007037885,-7313.15510257,0.000299,2]
[312566728,1706007037984,-921.05743728,0.000299,2]
[312566729,1706007037997,-19500.00000001,0.000299,2]
[312566730,1706007038009,-781.80101999,0.000299,2]
[312566731,1706007038163,-800.95214604,0.000299,2]
[312566732,1706007038234,-39061.02199996,0.000299,2]
[312566733,1706007038247,-384.84481361,0.000299,2]
[312566748,1706007040735,-3203.12806295,0.000299,2]
[312566749,1706007040747,-1582.749,0.000299,2]
[312566750,1706007040798,-1126.64444482,0.000299,2]
[312566751,1706007040809,-698.68555518,0.000299,2]
[312566752,1706007040821,-185.37032721,0.000299,2]
[312566753,1706007040831,-6290.07529369,0.000299,2]
[312566754,1706007040843,-391.3311,0.000299,2]
[312566755,1706007040855,-1652.03922853,0.000299,2]
[312566853,1706007043024,-150.0,0.00029472,2]
[312566856,1706007043034,-640.82362154,0.000299,2]
[312566857,1706007043046,-1007.12715328,0.000299,2]
[312566859,1706007043057,-384.05183585,0.000299,2]
[312566861,1706007043142,-2610.63382208,0.000299,2]
[312566866,1706007046013,-5191.60707215,0.000299,2]
[312566873,1706007046550,-253.66567874,0.000299,2]
[312566876,1706007080366,270.64795926,0.00018399,2]
[312566877,1706007083555,1303.30270929,0.00020698,2]
[312566878,1706007104025,1303.30270929,0.00020698,2]
[312566879,1706007120740,901.49345037,0.000155,2]
[312566880,1706007120776,155.0,0.00018628,2]
[312566881,1706007121599,1303.30270929,0.00020698,2]
[312566882,1706007123279,2325.32167616,0.00020698,2]
[312566883,1706007123633,772.83446918,0.00020077,2]
[312566884,1706007129102,1098.80867034,0.00020698,2]
[312566885,1706007136694,156.22271469,0.00018628,2]
[312566886,1706007137286,2325.32167616,0.00020698,2]
[312566887,1706007137548,1303.30270929,0.00020698,2]
[312566888,1706007139645,402.64675844,0.00020077,2]
[312566889,1706007146042,1243.26452789,0.00020698,2]
[312566890,1706007153430,1822.99814805,0.00020698,2]
[312566891,1706007157622,1303.30270929,0.00020698,2]
[312566893,1706007161657,402.64675844,0.00020077,2]
[312566895,1706007175615,497.37276767,0.00020698,2]
[312566896,1706007181642,402.64675844,0.00020077,2]
[312566898,1706007197653,402.64675844,0.00020077,2]
[312566900,1706007213635,402.64675844,0.00020077,2]
[312566902,1706007231663,402.64675844,0.00019475,2]
[312566903,1706007249656,402.64675844,0.00019475,2]
[312566905,1706007267653,402.64675844,0.00019475,2]
[312566906,1706007287661,402.64675844,0.00018891,2]
[312566907,1706007305664,513.16208754,0.00018891,2]
[312566908,1706007402601,164.96,0.00018142,2]
[312566909,1706007412044,676.2,0.0002076,2]
[312566922,1706007852941,642.39,0.00019675,2]
[312566944,1706008200195,150.0,0.00020918,2]
[312566947,1706008232115,-155.0,0.00021187,2]
[312566948,1706008232126,-270.31068666,0.00021187,2]
[312566949,1706008232136,-155.0,0.00021188,2]
[312566950,1706008232145,-1042.33733188,0.00021189,2]
[312566951,1706008232157,-182.33,0.00021191,2]
[312566952,1706008232166,-150.0,0.00021235,2]
[312566953,1706008232175,-22865.91,0.00021236,2]
[312566954,1706008232185,-166.45,0.00021254,2]
[312566955,1706008232194,-250.0,0.00021254,2]
[312566956,1706008232204,-2000.0,0.00021257,2]
[312566957,1706008232214,-242.73,0.0002136,2]
[312566958,1706008232224,-499.99,0.0002136,2]
[312566959,1706008232233,-150.0,0.00021466,2]
[312566960,1706008232243,-152.53,0.00021598,2]
[312566961,1706008232253,-250.0,0.00021655,2]
[312566962,1706008232263,-684.45,0.00021665,2]
[312566963,1706008232273,-152.53,0.000217,2]
[312566964,1706008232283,-163.62442298,0.00021728,2]
[312566965,1706008232293,-160.0,0.00021782,2]
[312566966,1706008232302,-152.53,0.00021802,2]
[312566967,1706008232312,-174.45102702,0.0002189,2]
[312566968,1706008232322,-152.53,0.00021905,2]
[312566969,1706008232331,-1266.09,0.00021918,2]
[312566970,1706008232341,-250.0,0.00021918,2]
[312566971,1706008232351,-7340.37848166,0.00021918,2]
[312566972,1706008232363,-2659.62151834,0.00021918,2]
[312566973,1706008232373,-200.0,0.00021918,2]
[312566974,1706008232382,-642.39,0.00021939,2]
[312566975,1706008232392,-163.62442296,0.00021962,2]
[312566976,1706008232402,-60.75911877,0.00022,2]
[312566978,1706008232947,-89.24088123,0.00022,2]
[312566979,1706008232957,-176.47,0.00022,2]
[312566980,1706008232967,-979.43084688,0.00022,2]
[312566981,1706008232976,-152.53,0.00022007,2]
[312566982,1706008232986,-152.53,0.00022109,2]
[312566983,1706008232996,-163.62442296,0.00022197,2]
[312566984,1706008233005,-152.53,0.00022211,2]
[312566985,1706008233014,-321.38020462,0.00022308,2]
[312566986,1706008233024,-152.53,0.00022314,2]
[312566987,1706008233035,-152.53,0.00022416,2]
[312566988,1706008233044,-9748.2943499,0.00022421,2]
[312566989,1706008233054,-2277.19029442,0.00022425,2]
[312566990,1706008233066,-833.38696774,0.00022425,2]
[312566991,1706008233075,-163.62442296,0.00022431,2]
[312566992,1706008233085,-684.45,0.00022466,2]
[312566993,1706008233094,-152.53,0.00022518,2]
[312566994,1706008233103,-7899.72635553,0.00022542,2]
[312566995,1706008233129,-622.67114989,0.00022542,2]
[312566996,1706008233141,-1046.60249458,0.00022542,2]
[312566997,1706008233150,-150.0,0.00022548,2]
[312566998,1706008233159,-176.47,0.00022548,2]
[312566999,1706008233167,-152.53,0.00022621,2]
[312567000,1706008233176,-300.0,0.00022637,2]
[312567001,1706008233185,-163.62442296,0.00022666,2]
[312567002,1706008233195,-152.53,0.00022723,2]
[312567003,1706008233204,-4967.5216,0.000228,2]
[312567004,1706008233213,-51586.43521381,0.000228,2]
[312567005,1706008233397,-451.63886766,0.000228,2]
[312567011,1706008238053,-553.43249204,0.000228,2]
[312567012,1706008238074,-1952.1758324,0.000228,2]
[312567013,1706008238117,-233615.28529409,0.000228,2]
[312567014,1706008238126,-251.3999,0.000228,2]
[312567015,1706008238137,-385.1543963,0.00022898,2]
[312567016,1706008238147,-18912.95492072,0.000229,2]
[312567017,1706008238156,-4631.64463028,0.000229,2]
[312567018,1706008238166,-163.62442296,0.000229,2]
[312567019,1706008238175,-155.5384445,0.000229,2]
[312567020,1706008238185,-1225.0823391,0.000229,2]
[312567021,1706008238194,-23067.01098153,0.000229,2]
[312567022,1706008238203,-5630.49562793,0.000229,2]
[312567023,1706008238213,-1092.96001287,0.000229,2]
[312567024,1706008238222,-629.39727996,0.000229,2]
[312567025,1706008238232,-227.36657171,0.000229,2]
[312567026,1706008238241,-1649.01203385,0.0002299,2]
[312567027,1706008238251,-177.72891972,0.00022998,2]
[312567028,1706008238260,-235.65370475,0.00022998,2]
[312567029,1706008238270,-296.44165808,0.00022998,2]
[312567030,1706008238279,-203.9274524,0.00022998,2]
[312567031,1706008238288,-635.66136512,0.00022998,2]
[312567032,1706008238297,-1071.76587125,0.00022999,2]
[312567033,1706008238306,-947.44703276,0.00022999,2]
[312567034,1706008238316,-3031.20814747,0.00022999,2]
[312567035,1706008238325,-1407.16889003,0.00022999,2]
[312567036,1706008238334,-1042.29691372,0.00022999,2]
[312567037,1706008238343,-275.98808753,0.00022999,2]
[312567038,1706008238354,-185.7482963,0.00022999,2]
[312567039,1706008238363,-331.23533859,0.00022999,2]
[312567040,1706008238373,-155.38611778,0.00022999,2]
[312567076,1706008238727,-156.84105949,0.00022999,2]
[312567078,1706008238737,-3095.50963829,0.00022999,2]
[312567080,1706008238746,-259.57374978,0.00022999,2]
[312567082,1706008238755,-567.86933457,0.00022999,2]
[312567084,1706008238764,-500.0,0.00022999,2]
[312567086,1706008238774,-210.81206285,0.00022999,2]
[312567088,1706008238782,-409.61579158,0.00022999,2]
[312567090,1706008238792,-248.20433166,0.00022999,2]
[312567092,1706008238800,-500.0,0.00022999,2]
[312567094,1706008238810,-422.97377135,0.00022999,2]
[312567096,1706008238819,-549.59625661,0.00022999,2]
[312567099,1706008238828,-470.90530832,0.00022999,2]
[312567100,1706008238837,-1969.38848745,0.00022999,2]
[312567103,1706008238852,-1000.4761,0.00022999,2]
[312567105,1706008238861,-248.97160551,0.00022999,2]
[312567106,1706008238870,-150.0,0.00022999,2]
[312567108,1706008238879,-248.97160551,0.00022999,2]
[312567110,1706008238889,-150.0,0.00022999,2]
[312567112,1706008238899,-248.97160551,0.00022999,2]
[312567114,1706008238911,-150.0,0.00022999,2]
[312567116,1706008238922,-150.0,0.00022999,2]
[312567118,1706008238931,-150.0,0.00022999,2]
[312567121,1706008238941,-150.0,0.00022999,2]
[312567123,1706008238950,-248.97160551,0.00022999,2]
[312567125,1706008238959,-248.97160551,0.00022999,2]
[312567127,1706008238969,-248.97160551,0.00022999,2]
[312567128,1706008238978,-2449.59672984,0.00023,2]
[312567130,1706008238990,-9646793.66955115,0.00023,2]
[312567133,1706008239004,-197128.32974707,0.00023,2]
[312567135,1706008239016,-103767.63632906,0.00023,2]
[312567136,1706008239028,-14392.51840333,0.00023,2]
[312567137,1706008239039,-254.3873579,0.00023,2]
[312567138,1706008239050,-1012.02711385,0.00023,2]
[312567139,1706008239088,-44586.1165762,0.00023,2]
[312567140,1706008239100,-1955.221034,0.00023,2]
[312567141,1706008239119,-717.01709644,0.00023,2]
[312567142,1706008239130,-1227.84208256,0.00023,2]
[312567143,1706008240555,-388.66577,0.00023,2]
[312567144,1706008240568,-3167.66700882,0.00023,2]
[312567145,1706008240579,-6081.43915332,0.00023,2]
[312567146,1706008240620,-349.39430039,0.00023,2]
[312567147,1706008240733,-616.7792413,0.00023,2]
[312567148,1706008240822,-372.84804128,0.00023,2]
[312567149,1706008240833,-63979.451908,0.00023,2]
[312567150,1706008240845,-8674.30004162,0.00023,2]
[312567151,1706008240856,-396.15066647,0.00023,2]
[312567152,1706008241402,-183595.62049928,0.00023,2]
[312567153,1706008241415,-82652.80520287,0.00023,2]
[312567154,1706008241427,-10392.1281613,0.00023,2]
[312567201,1706008243665,-155.0,0.00022999,2]
[312567202,1706008243676,-141.95776435,0.00022999,2]
[312567203,1706008243689,-240.25152498,0.00022999,2]
[312567204,1706008243699,-820.06347503,0.00023,2]
[312567205,1706008243714,-566.62860673,0.00023,2]
[312567206,1706008243743,-10464.42600002,0.00023,2]
[312567207,1706008243755,-280.3617,0.00023,2]
[312567208,1706008243781,-9179.29292719,0.00023,2]
[312567209,1706008243794,-2601.5819645,0.00023,2]
[312567210,1706008243867,-1129.52142299,0.00023,2]
[312567211,1706008243878,-260.63381433,0.00023,2]
[312567212,1706008243890,-14693.74884895,0.00023,2]
[312567213,1706008243902,-3164.71799383,0.00023,2]
[312567214,1706008243914,-1610.1893674,0.00023,2]
[312567215,1706008243930,-4708.39372862,0.00023,2]
[312567220,1706008246176,-155.0,0.00022999,2]
[312567221,1706008246185,-272.28351234,0.00023,2]
[312567222,1706008246238,-6295.65490811,0.00023,2]
[312567223,1706008246259,-66647.63710433,0.00023,2]
[312567224,1706008246333,-38960.0,0.00023,2]
[312567225,1706008246344,-776.1,0.00023,2]
[312567226,1706008246355,-339.05105135,0.00023,2]
[312567227,1706008246366,-1652.23369807,0.00023,2]
[312567228,1706008246397,-541.0,0.00023,2]
[312567229,1706008246459,-30368.65862832,0.00023,2]
[312567230,1706008246470,-15076.52881484,0.00023,2]
[312567231,1706008246480,-16906.45,0.00023,2]
[312567236,1706008250413,200.0,0.00033,30]
[312567237,1706008302062,361.19933031,0.00018158,2]
[312567238,1706008324043,404.31390588,0.00018158,2]
[312567239,1706008340055,405.50692796,0.00018158,2]
[312567240,1706008347016,155.160578,0.00018158,2]
[312567241,1706008351217,260.08436537,0.00018158,2]
[312567242,1706008367216,211.40424899,0.00018158,2]
[312567243,1706008375859,10980.46263477,0.00018158,2]
[312567244,1706008427846,3064.70618863,0.00018158,2]
[312567280,1706009245904,1761.330171,0.00021291,2]
[312567282,1706009396283,362.154075,0.00021291,2]
[312567283,1706009401314,155.34812394,0.00021291,2]
[312567284,1706009403644,2189.418241,0.00021078,2]
[312567287,1706009408709,284.18685088,0.00021291,2]
[312567288,1706009409361,159.27107825,0.00021291,2]
[312567289,1706009410162,155.42527609,0.00021291,2]
[312567290,1706009415058,156.92323127,0.00021291,2]
[312567291,1706009418005,3192.1431,0.00021291,2]
[312567292,1706009420143,828.4004548,0.00021291,2]
[312567293,1706009420200,284.19293511,0.00021291,2]
[312567294,1706009426625,155.0,0.00021291,2]
[312567314,1706009432582,-504.41543892,0.00021386,2]
[312567315,1706009432592,-46.77400185,0.00021387,2]
[312567316,1706009432613,-108.22599815,0.00021387,2]
[312567317,1706009432623,-561.1698166,0.00021388,2]
[312567318,1706009432633,-488.57813172,0.00021388,2]
[312567319,1706009432643,-370.81454833,0.00021389,2]
[312567320,1706009432655,-270.31068666,0.0002139,2]
[312567321,1706009432665,-664.1,0.00021647,2]
[312567322,1706009432675,-2000.0,0.00021648,2]
[312567323,1706009432685,-801.73098583,0.00021678,2]
[312567324,1706009432697,-198.26901417,0.00021678,2]
[312567327,1706009432707,-200.0,0.00021697,2]
[312567330,1706009432716,-155.87692029,0.00021825,2]
[312567333,1706009432725,-299.45,0.00021881,2]
[312567336,1706009432735,-776.48,0.00021925,2]
[312567339,1706009432746,-150.0,0.00022,2]
[312567342,1706009432755,-150.0,0.00022,2]
[312567344,1706009432765,-187.35,0.00022142,2]
[312567346,1706009432774,-499.99,0.00022142,2]
[312567348,1706009432784,-2863.65,0.00022142,2]
[312567350,1706009432794,-250.0,0.0002221,2]
[312567352,1706009432804,-2965.23,0.00022282,2]
[312567354,1706009432813,-159.79,0.00022298,2]
[312567356,1706009432823,-250.0,0.00022544,2]
[312567357,1706009432832,-176.35630077,0.00022548,2]
[312567358,1706009432841,-445.21,0.00022548,2]
[312567359,1706009432851,-1272.1376388,0.00022569,2]
[312567360,1706009432861,-159.79,0.00022588,2]
[312567361,1706009432870,-1484.34983641,0.00022598,2]
[312567367,1706009438245,-206.0,0.00022256,2]
[312567368,1706009438254,-128.41374848,0.00022598,2]
[312567369,1706009438306,-505.2600185,0.00022598,2]
[312567370,1706009438374,-16214.99690875,0.00022598,2]
[312567371,1706009438385,-3005.83468397,0.00022599,2]
[312567372,1706009438394,-461.0152,0.000226,2]
[312567373,1706009438409,-7782.3603,0.000226,2]
[312567374,1706009438419,-719.90550111,0.00022699,2]
[312567375,1706009438428,-20714.56649391,0.000227,2]
[312567376,1706009438440,-399.37201755,0.000227,2]
[312567377,1706009438452,-34449.62600832,0.000227,2]